bitfinex/quotes_ETHUSD_20240718
["timestamp","ask_amount","ask_price","bid_price","bid_amount"]
[1721325590624,2.93656,3405.4,3404.8,2.93698]
[1721325590833,2.93656,3405.4,3404.9,0.06064189]
[1721325591217,3.523853,3405.4,3404.9,0.06064189]
[1721325591591,3.523853,3405.4,3404.6,2.93713]
[1721325591847,3.523853,3405.4,3404.7,0.06070951]
[1721325592000,2.93669,3405.2,3404.7,0.06070951]
[1721325592521,3.0,3405.1,3404.7,0.06070951]
[1721325592886,3.0,3405.3,3404.7,2.99781951]
[1721325593101,3.0,3405.3,3404.7,0.06070951]
[1721325593302,0.6523853,3405.2,3404.7,0.06070951]
[1721325593511,3.0,3405.3,3404.7,0.06070951]
[1721325593902,5.93661,3405.3,3404.7,2.99780951]
[1721325594604,3.0,3405.3,3404.8,2.937]
[1721325594804,2.93647,3405.5,3404.9,0.06049516]
[1721325595022,3.0,3405.4,3404.9,0.06049516]
[1721325595396,6.823835,3405.4,3404.9,0.06049516]
[1721325595608,2.93682,3405.1,3404.2,0.2941]
[1721325595813,5.9369,3405.0,3404.3,2.99828603]
[1721325596125,5.9369,3405.0,3404.3,5.93566603]
[1721325596326,5.9369,3405.0,3404.3,2.99827603]
[1721325596939,2.93694,3404.9,3404.3,0.06089603]
[1721325597145,2.93694,3404.9,3404.1,3.48762]
[1721325597146,5.93707,3404.8,3404.1,3.48756]
[1721325597448,5.93707,3404.8,3404.2,0.06096323]
[1721325597647,5.93707,3404.8,3404.2,2.99846323]
[1721325597828,3.0,3404.8,3404.3,2.93745]
[1721325598032,2.93681,3405.1,3404.3,2.93745]
[1721325598033,5.93696,3404.9,3404.4,0.06082884]
[1721325600340,3.0,3404.9,3404.5,2.93728]
[1721325600528,2.93682,3405.1,3404.5,2.93728]
[1721325600743,3.0,3405.0,3404.5,2.93728]
[1721325601078,3.0,3405.0,3404.6,5.35285]
[1721325601241,3.0,3405.1,3404.6,5.35285]
[1721325601446,3.0,3405.1,3404.6,2.4157]
[1721325601672,2.3409,3404.9,3404.4,0.06082884]
[1721325601964,2.93722,3404.6,3404.4,0.06082884]
[1721325602125,2.93728,3404.5,3404.4,0.06082884]
[1721325602330,3.0,3404.5,3404.4,0.06082884]
[1721325602964,5.93703,3404.8,3404.4,0.06082884]
[1721325603129,6.824421,3404.8,3404.4,0.06082884]
[1721325603335,2.93722,3404.6,3404.4,0.06082884]
[1721325603531,3.0,3404.5,3404.4,0.06082884]
[1721325604339,5.93728,3404.5,3404.4,0.06082884]
[1721325609175,8.87456,3404.5,3404.4,0.06082884]
[1721325609384,9.8507551,3404.5,3404.4,0.06082884]
[1721325611377,20.38427892,3404.5,3404.4,0.06082884]
[1721325613476,20.38427892,3404.5,3404.4,8.84e-06]
[1721325614187,15.41899892,3404.5,3404.4,8.84e-06]
[1721325614388,12.48171892,3404.5,3404.4,8.84e-06]
[1721325615160,14.00889772,3404.5,3404.4,8.84e-06]
[1721325615367,14.00877441,3404.5,3404.4,8.84e-06]
[1721325615832,4.15885271,3404.7,3404.4,8.84e-06]
[1721325616037,2.93716,3404.7,3404.4,8.84e-06]
[1721325616238,2.93694,3404.9,3404.4,8.84e-06]
[1721325616975,2.93722,3404.6,3404.4,8.84e-06]
[1721325617339,2.93724,3404.6,3404.4,8.84e-06]
[1721325617539,4.15875271,3404.8,3404.4,8.84e-06]
[1721325617779,4.15875271,3404.8,3404.1,5.36772]
[1721325617943,2.9372,3404.6,3404.5,0.0505512]
[1721325618137,2.9372,3404.6,3404.1,2.4301]
[1721325618353,3.0,3404.5,3404.2,2.98829278]
[1721325618581,5.93712,3404.7,3404.2,0.05075278]
[1721325618973,3.0,3404.7,3404.3,2.93744]
[1721325619175,2.93703,3404.8,3404.3,0.05068558]
[1721325619376,3.0,3404.7,3404.2,0.83561228]
[1721325619574,3.0,3404.7,3404.3,0.05068558]
[1721325619870,3.0,3404.7,3404.2,2.93753]
[1721325620073,1.22228782,3405.0,3404.4,2.4612]
[1721325620273,2.13789941,3405.8,3404.8,2.93697]
[1721325620274,1.22228782,3405.7,3404.8,2.93697]
[1721325620486,2.93665,3405.3,3404.6,2.93716]
[1721325620778,1.22228782,3405.7,3404.8,2.93702]
[1721325620779,4.15877782,3405.5,3404.8,2.93702]
[1721325620980,4.15877782,3405.5,3404.9,0.05023098]
[1721325621182,2.93637,3405.6,3405.0,2.93685]
[1721325621183,1.22228782,3405.6,3405.0,2.93685]
[1721325621397,2.93636,3405.6,3405.0,2.93685]
[1721325621554,2.93636,3405.6,3405.1,0.05009738]
[1721325622060,1.22228782,3406.0,3405.5,2.93637]
[1721325622284,4.46370619,3406.1,3405.5,2.93637]
[1721325622285,2.93591,3406.1,3405.5,2.93637]
[1721325622490,2.93591,3406.1,3405.6,0.04968581]
[1721325622652,2.93591,3406.1,3405.5,2.93637]
[1721325623182,2.93599,3406.0,3405.4,2.93651]
[1721325623364,2.93608,3405.9,3405.3,2.93659]
[1721325623565,3.7981744,3406.0,3405.3,2.93659]
[1721325623566,0.8621844,3406.0,3405.4,2.98630318]
[1721325624167,0.8621844,3406.0,3405.5,2.93641]
[1721325624360,3.0,3406.0,3405.6,0.04966889]
[1721325625357,5.936,3406.0,3405.6,0.04966889]
[1721325625556,5.936,3406.0,3405.3,2.93659]
[1721325625787,5.936,3406.0,3405.4,0.04974442]
[1721325625993,2.93609,3405.9,3405.4,0.04974442]
[1721325626196,2.93627,3405.7,3405.4,0.04974442]
[1721325626703,2.93627,3405.7,3405.1,2.93675]
[1721325626903,2.93609,3405.9,3405.5,0.04967727]
[1721325627105,3.0,3405.8,3405.5,0.04967727]
[1721325627308,3.0,3405.8,3405.4,2.93644]
[1721325627602,3.0,3406.0,3405.5,0.04967727]
[1721325627910,2.93557,3406.5,3405.8,2.93616]
[1721325628201,3.0,3406.4,3405.8,2.93616]
[1721325628371,5.93565,3406.4,3405.8,2.93616]
[1721325628567,5.93565,3406.4,3405.9,0.04940872]
[1721325628783,0.887122,3406.3,3405.9,0.04940872]
[1721325629218,3.822862,3406.3,3405.9,0.04940872]
[1721325629369,5.87194,3406.1,3405.9,0.04940872]
[1721325629573,2.10940982,3406.3,3405.4,2.9365]
[1721325629574,2.93599,3406.0,3405.4,2.9365]
[1721325629793,3.822882,3406.3,3405.4,2.9365]
[1721325630066,2.93596,3406.1,3405.5,0.04967727]
[1721325630271,3.0,3406.0,3405.5,0.04967727]
[1721325630489,3.0,3406.0,3405.7,2.93624]
[1721325630689,3.0,3406.2,3405.8,2.93615]
[1721325630906,3.0,3406.4,3405.8,2.98562585]
[1721325631089,4.00932978,3406.4,3405.8,2.98562585]
[1721325631413,4.00932978,3406.4,3405.8,2.93615]
[1721325631804,3.0,3406.4,3406.0,2.93598]
[1721325632001,2.93541,3406.7,3406.0,5.23658]
[1721325632002,3.0,3406.6,3406.0,5.23658]
[1721325632201,3.0,3406.6,3406.1,0.04924065]
[1721325632403,2.93579,3406.3,3406.1,0.04924065]
[1721325632911,2.93579,3406.3,3405.7,2.93624]
[1721325633093,2.93579,3406.3,3406.2,0.04911396]
[1721325633287,3.0,3406.3,3405.7,2.93624]
[1721325633493,3.0,3406.4,3406.2,0.04911396]
[1721325633718,3.0,3406.4,3405.7,2.93624]
[1721325634311,3.0,3406.4,3405.6,2.3006]
[1721325634312,2.93541,3406.7,3406.1,2.93588]
[1721325634525,3.0,3406.6,3406.1,2.93588]
[1721325634727,3.0,3406.6,3406.2,0.04907719]
[1721325635098,2.93524,3406.9,3406.2,2.98489719]
[1721325635291,5.9353,3406.8,3406.2,2.98489719]
[1721325635917,5.9353,3406.8,3406.2,0.04907719]
[1721325636427,3.0,3406.8,3406.3,5.29353]
[1721325636643,5.93522,3406.9,3406.3,5.29353]
[1721325636797,10.43482,3407.4,3406.6,2.93547]
[1721325636798,10.43481,3407.4,3406.6,2.93547]
[1721325637097,2.93505,3407.1,3406.4,2.98451854]
[1721325637295,2.93505,3407.1,3406.7,0.0487137]
[1721325637496,2.93505,3407.1,3406.5,2.93556]
[1721325637727,3.522042,3407.1,3406.8,0.0486466]
[1721325637914,3.522042,3407.1,3406.6,2.93547]
[1721325637915,0.586992,3407.1,3406.6,2.93547]
[1721325638106,2.93497,3407.2,3406.9,0.04857951]
[1721325638322,2.93497,3407.2,3406.6,2.93547]
[1721325638323,3.0,3407.1,3406.6,2.93547]
[1721325638542,3.0,3407.1,3407.0,0.04849331]
[1721325638736,3.0,3407.1,3406.6,2.93547]
[1721325638935,3.0,3407.1,3406.7,2.93537]
[1721325639136,3.0,3407.3,3406.7,2.93537]
[1721325639449,3.0,3407.3,3406.8,0.04862528]
[1721325639611,5.93488,3407.3,3406.8,0.04862528]
[1721325639943,2.93496,3407.2,3406.5,2.9355]
[1721325640114,3.0,3407.1,3406.9,0.04855157]
[1721325640465,5.9351,3407.1,3407.0,0.04848448]
[1721325640757,3.0,3407.1,3406.6,2.93547]
[1721325640959,3.0,3407.1,3406.4,2.93557]
[1721325641121,3.6821948,3407.1,3406.4,2.93556]
[1721325641322,3.0,3407.1,3406.5,2.98437659]
[1721325641518,5.93505,3407.1,3406.5,2.98437659]
[1721325641766,3.0,3407.1,3406.7,2.93538]
[1721325641962,3.0,3407.2,3406.7,2.93538]
[1721325642259,3.0,3407.2,3406.8,0.04862528]
[1721325642459,5.93479,3407.4,3406.8,0.04862528]
[1721325642620,5.93479,3407.4,3406.8,2.93528]
[1721325642820,5.93479,3407.4,3406.9,0.04848983]
[1721325643625,5.93479,3407.4,3406.5,2.93552]
[1721325643822,5.93479,3407.4,3406.6,0.55]
[1721325644029,5.93479,3407.4,3406.7,2.93534]
[1721325644585,5.93479,3407.4,3406.8,0.04855693]
[1721325644865,2.93487,3407.3,3406.8,0.04855693]
[1721325645027,3.0,3407.2,3406.8,0.04855693]
[1721325645383,3.0,3407.2,3406.9,0.04848983]
[1721325645584,3.0,3407.2,3406.7,2.93534]
[1721325645891,3.0,3407.2,3406.8,0.04855693]
[1721325646182,3.0,3407.2,3406.7,2.93534]
[1721325646373,3.0,3407.2,3406.8,0.04855693]
[1721325646577,3.0,3407.2,3406.7,2.93534]
[1721325646744,3.0,3407.2,3406.8,0.04854443]
[1721325646946,3.0,3407.2,3406.7,2.93534]
[1721325647251,3.0,3407.2,3406.8,0.04854443]
[1721325647785,3.0,3407.2,3406.7,2.93534]
[1721325647786,3.0,3407.2,3406.9,0.04847734]
[1721325647983,2.93487,3407.3,3406.7,2.93534]
[1721325648191,2.93487,3407.3,3406.8,0.04854443]
[1721325648400,2.93478,3407.5,3406.8,2.93529]
[1721325648604,5.93478,3407.5,3406.9,0.04847734]
[1721325648753,5.86967,3407.4,3406.9,0.04847734]
[1721325648954,3.0,3407.3,3406.9,0.04847734]
[1721325649365,5.93488,3407.3,3406.9,0.04847734]
[1721325651102,5.93488,3407.3,3407.0,0.04679434]
[1721325651401,5.93488,3407.3,3406.8,2.93529]
[1721325651605,5.93488,3407.3,3406.9,0.04686143]
[1721325651964,5.93488,3407.3,3406.4,2.93558]
[1721325651965,2.93513,3407.0,3406.4,2.93558]
[1721325652278,2.93513,3407.0,3406.5,0.04712615]
[1721325652690,2.93522,3406.9,3406.5,0.04712615]
[1721325652857,3.593488,3407.3,3406.5,0.04712615]
[1721325652858,6.056988,3407.3,3406.5,0.04712615]
[1721325653070,2.93532,3406.8,3406.5,0.04712615]
[1721325653268,2.93532,3406.8,3406.3,5.29353]
[1721325653499,2.93532,3406.8,3406.6,0.04705831]
[1721325653813,2.93532,3406.8,3406.7,0.04699121]
[1721325654260,2.93532,3406.8,3406.3,2.3578]
[1721325654462,2.93532,3406.8,3406.7,0.04699121]
[1721325654667,2.93532,3406.8,3406.3,2.3578]
[1721325654877,2.93532,3406.8,3406.7,0.04699121]
[1721325655079,2.93532,3406.8,3406.3,2.3578]
[1721325655284,2.93532,3406.8,3406.7,0.04699121]
[1721325655495,2.93532,3406.8,3406.3,2.3578]
[1721325655790,0.587046,3406.8,3406.0,0.2941]
[1721325655967,2.93551,3406.6,3406.1,0.04739388]
[1721325656169,2.93551,3406.6,3404.6,2.2824]
[1721325656170,2.93683,3405.1,3404.6,2.2824]
[1721325656378,2.93683,3405.1,3404.7,0.04670172]
[1721325656579,2.93686,3405.0,3404.7,0.04670172]
[1721325656760,2.93703,3404.8,3404.7,0.04670172]
[1721325656957,2.93703,3404.8,3404.3,0.830533]
[1721325657159,2.93686,3405.0,3404.4,2.98426327]
[1721325657396,2.93684,3405.1,3404.4,2.98426327]
[1721325657699,5.93643,3405.5,3404.8,2.93697]
[1721325657996,2.93622,3405.8,3405.0,2.393]
[1721325658193,2.93622,3405.8,3405.1,0.04643304]
[1721325658398,2.93622,3405.8,3405.1,2.98313304]
[1721325658564,3.0,3405.7,3405.1,2.98313304]
[1721325658890,3.0,3405.7,3405.3,2.93658]
[1721325659095,7.5,3406.3,3405.4,2.93645]
[1721325659096,2.93598,3406.1,3405.4,2.93645]
[1721325659257,2.93598,3406.1,3405.4,2.98268157]
[1721325659258,3.0,3406.0,3405.4,2.98268157]
[1721325659458,5.936,3406.0,3405.4,2.98268157]
[1721325660460,2.93609,3405.9,3405.4,0.04623157]
[1721325660665,2.93642,3405.5,3405.4,0.04623157]
[1721325660897,2.93661,3405.3,3404.6,3.23127]
[1721325661065,2.93665,3405.3,3404.7,3.78121]
[1721325661691,2.4527,3405.8,3404.5,2.4341]
[1721325661912,2.93688,3405.0,3404.5,2.4341]
[1721325663171,13.43617,3405.8,3404.6,0.830887]
[1721325663380,2.93639,3405.6,3404.9,2.93693]
[1721325663577,3.0,3405.5,3404.7,3.4871]
[1721325663776,3.0,3405.8,3404.7,0.55]
[1721325664023,5.3571,3405.8,3404.6,0.55]
[1721325664190,5.3571,3405.8,3404.5,2.4341]
[1721325664513,2.93691,3405.0,3404.4,2.93736]
[1721325665479,5.87346,3405.2,3404.5,2.93728]
[1721325665707,2.93679,3405.1,3404.5,2.93728]
[1721325665914,2.93666,3405.3,3404.5,2.93728]
[1721325666090,2.93651,3405.4,3404.8,2.4621]
[1721325666291,2.93634,3405.6,3404.8,2.4621]
[1721325666508,10.5,3405.8,3405.0,2.93684]
[1721325666509,3.0,3405.5,3405.0,2.93684]
[1721325666682,7.5,3405.8,3405.3,2.93657]
[1721325667018,2.93613,3405.9,3405.2,2.93668]
[1721325667383,2.93613,3405.9,3405.3,2.93659]
[1721325668008,2.9359,3406.1,3404.9,0.55]
[1721325668009,2.93646,3405.5,3404.9,0.55]
[1721325668211,2.93646,3405.5,3404.9,2.93687]
[1721325668413,2.93646,3405.5,3404.7,2.93707]
[1721325668414,2.93652,3405.4,3404.7,2.93706]
[1721325668726,2.93668,3405.2,3404.5,3.230978]
[1721325668936,2.93668,3405.2,3404.5,2.93725]
[1721325669233,2.93668,3405.2,3404.6,2.93719]
[1721325669234,2.93677,3405.1,3404.6,2.93719]
[1721325669399,2.93677,3405.1,3404.5,2.93728]
[1721325669982,2.93677,3405.1,3404.6,3.48719]
[1721325670962,2.93677,3405.1,3404.7,0.04673284]
[1721325671095,2.9366,3405.3,3404.7,0.04673284]
[1721325671295,7.5,3405.9,3404.7,0.69386212]
[1721325671611,2.4506,3406.7,3404.9,5.22351]
[1721325671612,2.93582,3406.2,3404.9,5.22351]
[1721325671797,2.93582,3406.2,3405.4,2.9365]
[1721325671995,2.93582,3406.2,3405.5,0.04619554]
[1721325672237,3.229402,3406.2,3405.5,0.04619554]
[1721325672650,3.229402,3406.2,3405.6,2.93633]
[1721325672812,5.87142,3406.4,3405.6,2.93633]
[1721325673014,2.93569,3406.4,3405.7,2.98229125]
[1721325673203,2.93576,3406.3,3405.7,2.98229125]
[1721325673606,2.93576,3406.3,3405.7,3.04101042]
[1721325673806,2.93566,3406.4,3405.8,2.93616]
[1721325674043,2.9355,3406.6,3405.9,2.98193698]
[1721325674253,2.93565,3406.4,3405.9,0.04592698]
[1721325674598,3.754742,3406.6,3405.9,0.04592698]
[1721325674853,3.0,3406.5,3406.0,2.93593]
[1721325675153,2.3216,3406.8,3406.3,2.93572]
[1721325675298,5.25695,3406.8,3406.1,2.98163273]
[1721325675497,5.25695,3406.8,3406.4,0.04559138]
[1721325675702,2.3216,3406.8,3406.2,2.93578]
[1721325675987,2.3216,3406.8,3406.5,0.04552427]
[1721325676105,2.3216,3406.8,3406.3,2.93573]
[1721325676302,2.93539,3406.7,3406.6,0.04545717]
[1721325676567,5.93539,3406.7,3406.0,2.93595]
[1721325676856,5.93539,3406.7,3406.1,0.59579273]
[1721325677061,2.93556,3406.5,3406.1,0.04579273]
[1721325677220,4.119226,3406.7,3406.1,0.04579273]
[1721325677425,2.93582,3406.2,3405.5,0.2941]
[1721325677663,2.93582,3406.2,3405.6,0.04612839]
[1721325677949,2.93568,3406.4,3405.7,2.93624]
[1721325678388,2.93583,3406.2,3405.8,0.04596691]
[1721325678560,2.93591,3406.1,3405.8,0.04596691]
[1721325678856,2.93591,3406.1,3405.9,0.04589977]
[1721325679351,2.93601,3406.0,3405.5,0.2941]
[1721325679648,2.93576,3406.3,3405.5,3.2305]
[1721325679867,2.93593,3406.1,3405.5,3.2305]
[1721325680512,2.93599,3406.0,3405.5,3.2305]
[1721325681144,2.93587,3406.2,3405.5,3.23045]
[1721325681322,2.93587,3406.2,3405.6,2.93631]
[1721325681963,2.93592,3406.1,3405.5,0.2941]
[1721325682200,5.87191,3406.1,3405.5,0.2941]
[1721325682966,2.93592,3406.1,3405.5,0.2941]
[1721325683542,5.8719,3406.1,3405.5,0.2941]
[1721325683853,2.4347,3406.4,3405.5,0.2941]
[1721325683854,2.93602,3406.0,3405.5,0.2941]
[1721325684248,5.87209,3406.0,3405.4,2.93645]
[1721325684459,5.87209,3406.0,3405.0,2.93681]
[1721325684460,0.293602,3406.0,3405.0,2.93681]
[1721325684692,2.9363,3405.7,3404.5,2.93724]
[1721325684837,2.93676,3405.2,3404.5,2.93724]
[1721325685038,2.93676,3405.2,3404.5,2.93721]
[1721325685280,2.93678,3405.1,3404.5,2.93721]
[1721325685437,2.93711,3404.7,3404.1,2.93761]
[1721325685644,2.93711,3404.7,3404.2,0.293761]
[1721325685867,10.43653,3405.4,3404.6,2.93719]
[1721325686067,2.93633,3405.7,3405.0,2.93681]
[1721325686267,2.93633,3405.7,3404.8,2.93699]
[1721325686477,2.93633,3405.7,3405.1,0.04640017]
[1721325686478,5.87265,3405.7,3405.1,0.04640017]
[1721325686670,2.93632,3405.7,3405.0,2.93685]
[1721325686880,2.93611,3405.9,3405.2,0.04633301]
[1721325686881,2.93635,3405.6,3405.2,0.04633301]
[1721325687172,2.93617,3405.8,3405.3,0.04626585]
[1721325687486,2.93617,3405.8,3404.9,2.93692]
[1721325687487,2.93618,3405.8,3404.9,2.93692]
[1721325687641,2.9364,3405.6,3405.4,0.0461987]
[1721325687842,2.9364,3405.6,3405.0,3.48685]
[1721325688055,2.9364,3405.6,3405.5,0.04613155]
[1721325688383,2.9364,3405.6,3405.0,3.48685]
[1721325688587,2.9364,3405.6,3405.5,0.04613155]
[1721325689096,2.93642,3405.5,3405.0,2.93685]
[1721325689242,2.93642,3405.5,3404.8,2.93701]
[1721325689686,2.93642,3405.5,3404.9,2.93692]
[1721325690098,2.93642,3405.5,3405.0,2.93684]
[1721325690444,2.93642,3405.5,3404.9,0.587409]
[1721325690699,2.93659,3405.4,3404.8,2.93697]
[1721325690845,2.9366,3405.3,3404.5,2.93726]
[1721325691046,2.9366,3405.3,3404.6,0.55]
[1721325691441,2.93642,3405.5,3404.7,2.9371]
[1721325691648,2.93652,3405.4,3404.8,2.93697]
[1721325692159,2.93642,3405.5,3404.8,2.93697]
[1721325692160,2.93661,3405.3,3404.8,2.93697]
[1721325692466,2.93629,3405.7,3404.8,2.93697]
[1721325692669,2.9365,3405.5,3404.8,2.93697]
[1721325692977,2.9366,3405.3,3404.8,2.93697]
[1721325693581,2.93657,3405.4,3404.8,2.93697]
[1721325693750,2.9366,3405.3,3404.8,2.93697]
[1721325694649,2.2797,3405.2,3404.3,0.2941]
[1721325694949,2.2797,3405.2,3404.2,3.0]
[1721325695149,2.93707,3404.8,3404.1,3.0]
[1721325695676,2.93707,3404.8,3403.7,2.2541]
[1721325695870,2.93707,3404.8,3403.7,2.5482]
[1721325696065,2.93707,3404.8,3403.8,4.051434]
[1721325696265,2.93689,3405.0,3404.2,2.93749]
[1721325696466,2.93695,3404.9,3404.3,3.0]
[1721325697080,2.93695,3404.9,3403.3,0.46032731]
[1721325697081,2.028,3404.9,3403.3,0.46032731]
[1721325697303,2.028,3404.9,3403.2,0.1473997]
[1721325697304,2.93795,3403.8,3403.2,0.1473997]
[1721325697454,2.93795,3403.8,3403.2,3.0857797]
[1721325697654,2.93795,3403.8,3403.2,3.68821767]
[1721325697988,2.9378,3403.9,3403.3,2.98275351]
[1721325698154,2.93789,3403.8,3403.3,0.04445351]
[1721325698557,2.93789,3403.8,3403.2,3.68818767]
[1721325698753,2.93789,3403.8,3403.4,0.04438628]
[1721325699072,2.93789,3403.8,3403.5,0.04431905]
[1721325699073,2.93798,3403.7,3403.5,0.04431905]
[1721325699488,2.93787,3403.9,3403.2,3.68823767]
[1721325699663,2.93787,3403.9,3403.6,0.04425183]
[1721325699859,2.93789,3403.8,3403.2,3.68823767]
[1721325700158,2.93789,3403.8,3403.3,0.04445351]
[1721325700581,2.93789,3403.8,3403.2,3.68823767]
[1721325700770,2.93789,3403.8,3403.4,0.04438628]
[1721325700978,2.93789,3403.8,3403.3,0.04445351]
[1721325701220,2.93787,3403.9,3403.4,0.04438628]
[1721325701425,2.93789,3403.8,3403.4,0.04438628]
[1721325701627,2.93789,3403.8,3403.2,0.74983767]
[1721325701816,2.93789,3403.8,3403.3,0.04445351]
[1721325702018,2.93789,3403.8,3403.3,2.93831]
[1721325702203,2.93785,3403.9,3403.2,3.68822767]
[1721325702535,2.93785,3403.9,3403.3,0.04445351]
[1721325702959,2.3506,3404.8,3403.4,2.4474]
[1721325703248,2.93703,3404.8,3404.1,2.93758]
[1721325703392,2.93703,3404.8,3404.2,0.04400163]
[1721325703590,2.9367,3405.2,3404.5,2.93725]
[1721325703794,2.93678,3405.1,3404.5,0.348725]
[1721325703995,2.93655,3405.4,3404.6,0.04373287]
[1721325704191,10.43643,3405.5,3404.9,2.93689]
[1721325704429,2.93635,3405.6,3404.9,2.93689]
[1721325704632,7.5,3406.2,3405.0,0.63086264]
[1721325704633,2.93601,3406.0,3405.0,0.63086264]
[1721325704799,2.93601,3406.0,3405.1,2.9367]
[1721325704995,2.93608,3405.9,3405.2,0.04323575]
[1721325705191,2.9363,3405.7,3405.2,0.04323575]
[1721325705396,2.93632,3405.7,3405.0,0.55]
[1721325705628,2.93632,3405.7,3405.0,3.48685]
[1721325705835,2.93632,3405.7,3405.1,0.04330291]
[1721325706210,3.523562,3405.7,3405.1,0.04330291]
[1721325706416,2.93634,3405.6,3405.1,0.04330291]
[1721325707036,2.93665,3405.3,3405.1,0.04330291]
[1721325707342,2.93665,3405.3,3404.5,3.286005]
[1721325707343,2.93659,3405.3,3404.5,2.93728]
[1721325707536,2.93659,3405.3,3405.2,0.04323575]
[1721325707736,2.93659,3405.3,3404.7,2.93708]
[1721325707912,2.93644,3405.5,3405.2,0.04323575]
[1721325707913,2.93652,3405.4,3405.2,0.04323575]
[1721325708117,2.93644,3405.5,3404.9,2.93694]
[1721325708430,2.93651,3405.4,3404.7,2.93704]
[1721325708605,2.93651,3405.4,3404.8,0.04350441]
[1721325708802,2.93651,3405.4,3404.8,2.98050441]
[1721325710014,2.93651,3405.4,3404.8,0.04350441]
[1721325710323,2.93687,3405.0,3404.4,2.93729]
[1721325710516,2.93687,3405.0,3404.9,0.04343724]
[1721325710716,2.93676,3405.2,3404.4,2.93729]
[1721325710717,2.93675,3405.2,3404.4,2.93729]
[1721325710937,2.93677,3405.1,3404.9,0.04343724]
[1721325711238,2.93677,3405.1,3405.0,0.04337007]
[1721325711538,2.93677,3405.1,3404.4,2.93729]
[1721325711742,2.93677,3405.1,3405.0,0.04337007]
[1721325711938,2.93677,3405.1,3404.5,2.93722]
[1721325712361,2.93677,3405.1,3404.6,0.0435478]
[1721325712649,3.55935952,3405.1,3404.6,0.0435478]
[1721325713956,3.55935952,3405.1,3404.6,2.9807378]
[1721325714154,2.93677,3405.1,3404.6,2.9807378]
[1721325714558,2.93677,3405.1,3404.6,0.0435478]
[1721325714737,2.93677,3405.1,3404.3,2.93742]
[1721325715054,2.93677,3405.1,3404.4,0.04353749]
[1721325715224,2.93697,3404.9,3404.4,0.04353749]
[1721325715425,2.93677,3405.1,3404.4,2.98090749]
[1721325716232,3.55934852,3405.1,3404.4,2.98090749]
[1721325716474,3.55934852,3405.1,3404.5,2.93727]
[1721325716475,2.93677,3405.1,3404.5,2.93727]
[1721325716771,2.93677,3405.1,3404.6,0.04341048]
[1721325717274,2.93649,3405.5,3404.8,2.93696]
[1721325717498,7.5,3406.1,3404.6,0.59341048]
[1721325717634,7.5,3406.1,3405.5,2.93634]
[1721325717936,8.32989379,3406.1,3405.6,0.04272929]
[1721325718142,0.82989379,3406.1,3405.6,0.04272929]
[1721325718338,2.93588,3406.2,3405.6,2.93627]
[1721325718561,2.93567,3406.4,3405.8,2.93616]
[1721325718731,2.93567,3406.4,3405.7,0.10137912]
[1721325718931,2.93567,3406.4,3405.9,2.97850747]
[1721325719258,2.93567,3406.4,3405.9,2.93606]
[1721325719458,3.522788,3406.4,3406.0,0.04238034]
[1721325720081,2.93582,3406.2,3406.0,0.04238034]
[1721325720432,2.93582,3406.2,3405.3,2.93654]
[1721325720433,2.93604,3406.0,3405.3,2.93654]
[1721325720634,2.93585,3406.2,3405.3,2.93653]
[1721325721047,2.93585,3406.2,3405.5,2.93635]
[1721325721273,2.93585,3406.2,3405.3,2.93655]
[1721325721450,2.93565,3406.4,3405.3,0.909806]
[1721325721654,2.93565,3406.4,3405.8,2.93609]
[1721325722048,2.93565,3406.4,3405.4,0.60871919]
[1721325722049,2.93565,3406.4,3405.6,2.9363]
[1721325722264,5.25695,3406.8,3405.7,0.05871919]
[1721325722468,5.25695,3406.8,3406.1,2.93583]
[1721325722671,2.9354,3406.7,3406.1,2.93583]
[1721325722999,5.25695,3406.8,3405.8,2.93613]
[1721325723304,5.782645,3406.8,3406.0,2.93594]
[1721325723471,2.847295,3406.8,3406.3,2.93567]
[1721325723650,2.3216,3406.8,3406.3,2.93567]
[1721325723856,2.3216,3406.8,3406.3,5.87135]
[1721325724052,2.3216,3406.8,3406.3,2.93567]
[1721325724477,2.3216,3406.8,3406.5,2.93548]
[1721325724790,2.3216,3406.8,3406.5,2.93551]
[1721325725288,2.3216,3406.8,3406.5,2.93548]
[1721325725491,2.3216,3406.8,3406.6,2.93547]
[1721325726492,2.3216,3406.8,3406.4,2.93557]
[1721325726789,2.3216,3406.8,3406.4,0.293557]
[1721325726989,2.3216,3406.8,3406.7,2.93539]
[1721325727696,2.3216,3406.8,3406.7,5.87078]
[1721325728666,2.3216,3406.8,3406.7,6.42078]
[1721325730891,2.3216,3406.8,3406.7,6.46236752]
[1721325731687,2.3216,3406.8,3406.7,9.39775752]
[1721325731883,2.3216,3406.8,3406.7,10.66049427]
[1721325732097,1.70923691,3406.8,3406.7,16.01069427]
[1721325732415,1.70923691,3406.8,3406.7,18.03869427]
[1721325732603,0.62065372,3406.8,3406.7,21.26818427]
[1721325732770,2.93386,3408.5,3407.9,2.9343]
[1721325732977,2.93386,3408.5,3408.0,2.93427]
[1721325733186,2.93369,3408.7,3408.1,2.93416]
[1721325733403,2.2901,3408.8,3408.1,2.93416]
[1721325733605,2.93348,3409.0,3408.3,2.93393]
[1721325733794,2.2901,3409.3,3408.2,0.04054474]
[1721325733995,2.93375,3408.6,3408.4,0.04041066]
[1721325734208,0.725121,3409.2,3408.0,2.93426]
[1721325734209,2.93364,3408.8,3408.1,2.93417]
[1721325734408,2.93364,3408.8,3408.5,0.04034363]
[1721325734612,2.93364,3408.8,3408.2,2.93408]
[1721325734781,2.93345,3409.0,3408.6,0.04027661]
[1721325734978,0.8882031,3409.0,3408.4,2.93391]
[1721325735286,2.93336,3409.1,3408.4,2.93391]
[1721325735491,2.93341,3409.0,3408.4,2.93391]